bitfinex/quotes_ETHUSD_20240716
["timestamp","ask_amount","ask_price","bid_price","bid_amount"]
[1721147786616,0.89872853,3452.3,3452.0,2.89686]
[1721147786809,0.89872853,3452.3,3451.9,0.53281166]
[1721147786810,0.89872853,3452.1,3451.9,0.53281166]
[1721147787014,0.89872853,3452.1,3452.0,2.89687]
[1721147787234,0.89872853,3452.2,3451.9,3.42976166]
[1721147787664,0.89872853,3452.4,3452.2,2.8967]
[1721147787816,0.89872853,3452.5,3452.2,2.8967]
[1721147788212,1.19772602,3452.6,3452.2,2.8967]
[1721147788439,2.97399892,3454.1,3452.2,2.8967]
[1721147788440,0.8992793,3452.5,3452.2,2.8967]
[1721147788642,0.8992793,3452.5,3452.4,2.89653]
[1721147788833,0.89931636,3452.6,3452.4,2.89653]
[1721147789651,0.89931636,3452.6,3452.0,3.48292383]
[1721147789837,0.89931636,3452.6,3452.1,2.8967]
[1721147789838,0.89931636,3452.4,3452.1,2.8967]
[1721147790152,0.89931636,3452.5,3452.0,3.48288383]
[1721147790359,0.89931636,3452.5,3451.8,5.2164]
[1721147790360,0.89931636,3452.2,3451.8,5.2164]
[1721147790517,0.89931636,3452.2,3451.8,2.3194]
[1721147790725,0.89931636,3452.1,3451.8,2.3194]
[1721147790925,0.89931636,3452.0,3451.8,2.3194]
[1721147791354,0.8991489,3452.0,3451.8,2.3194]
[1721147791862,1.49863452,3452.4,3451.8,2.3194]
[1721147791863,0.8991489,3452.1,3451.8,2.3194]
[1721147792035,0.8991489,3452.0,3451.8,2.3194]
[1721147792361,0.8991489,3452.0,3451.7,0.1116766]
[1721147792362,0.55,3451.9,3451.7,0.1116766]
[1721147792678,1.79836143,3451.9,3451.7,0.1116766]
[1721147792880,1.79836143,3451.8,3451.7,0.1116766]
[1721147793162,2.09808833,3451.9,3451.7,0.1116766]
[1721147793465,2.34824882,3451.8,3451.7,0.1116766]
[1721147793626,0.05088132,3451.8,3451.7,0.1116766]
[1721147793823,0.55,3451.8,3451.7,0.1116766]
[1721147794024,0.05088132,3451.8,3451.7,0.1116766]
[1721147794257,1.79836005,3451.9,3451.7,0.1116766]
[1721147794487,0.05081739,3451.8,3451.7,0.1116766]
[1721147795464,1.79844768,3452.0,3451.7,0.1116766]
[1721147795631,0.05081739,3451.8,3451.7,0.1116766]
[1721147795832,1.79844768,3452.0,3451.7,0.1116766]
[1721147796157,0.05081552,3451.8,3451.7,0.1116766]
[1721147796356,1.79844768,3452.0,3451.7,0.1116766]
[1721147796971,0.05081552,3451.9,3451.7,0.1116766]
[1721147797129,0.55,3451.8,3451.7,0.1116766]
[1721147797760,0.60081552,3451.8,3451.7,0.1116766]
[1721147798158,0.05081552,3451.8,3451.7,0.1116766]
[1721147798369,1.25065267,3451.8,3451.7,0.1116766]
[1721147798557,1.25066611,3451.8,3451.7,0.70229826]
[1721147798758,0.05081552,3451.8,3451.7,0.70229826]
[1721147798969,0.05081552,3451.8,3451.7,0.1116766]
[1721147799363,1.85028829,3451.8,3451.7,0.1116766]
[1721147799548,1.79947277,3451.8,3451.7,0.1116766]
[1721147799754,0.05085499,3451.8,3451.7,0.1116766]
[1721147800071,0.55,3451.8,3451.7,0.1116766]
[1721147800241,3.89585499,3451.8,3451.7,0.1116766]
[1721147800436,6.89585499,3451.8,3451.7,0.1116766]
[1721147800642,17.26028124,3451.8,3450.3,2.3169]
[1721147800860,0.89943508,3450.4,3450.3,2.3169]
[1721147801251,0.95029007,3450.4,3450.3,2.3169]
[1721147801461,1.25010177,3450.4,3450.3,2.3169]
[1721147801861,0.05085499,3450.4,3450.3,2.3169]
[1721147802285,0.05085499,3450.4,3450.1,0.61998698]
[1721147802456,0.89889465,3450.3,3450.1,0.61998698]
[1721147802654,0.89889465,3450.2,3450.1,0.61998698]
[1721147802866,1.49868344,3450.3,3450.1,0.61998698]
[1721147803173,0.05066696,3450.2,3450.1,0.61998698]
[1721147803347,1.2486774,3450.2,3450.1,0.61998698]
[1721147803549,1.19801044,3450.2,3450.1,0.61998698]
[1721147803750,0.05066696,3450.2,3450.1,0.61998698]
[1721147804061,0.89860925,3450.3,3450.1,0.40158]
[1721147804374,0.05066696,3450.2,3450.1,0.40158]
[1721147804874,0.05063122,3450.2,3450.1,0.40158]
[1721147805074,0.89860925,3450.4,3450.1,0.40158]
[1721147805250,0.05063122,3450.2,3450.1,0.40158]
[1721147805452,0.89860925,3450.6,3450.2,2.89838]
[1721147805656,0.89860925,3450.7,3450.2,2.89838]
[1721147806576,0.89860925,3450.9,3450.6,2.89804]
[1721147806876,0.89860925,3451.0,3450.7,2.89794]
[1721147807044,0.89860925,3451.1,3450.7,2.89794]
[1721147807244,1.19801044,3451.3,3451.1,2.89762]
[1721147807245,0.89788126,3451.3,3451.1,2.89762]
[1721147807577,0.89788126,3451.6,3451.3,2.89743]
[1721147807745,0.89788126,3451.6,3451.2,2.3704]
[1721147808351,0.89788126,3451.5,3451.2,2.3704]
[1721147808601,0.89788126,3451.6,3451.2,2.3704]
[1721147808878,1.49658808,3451.9,3451.3,3.424191]
[1721147808879,0.89788126,3451.7,3451.3,3.424191]
[1721147809049,0.05067072,3451.5,3451.3,3.424191]
[1721147809249,0.89788126,3451.7,3451.3,0.526801]
[1721147809454,0.05067072,3451.4,3451.3,0.526801]
[1721147809643,0.9437285,3451.6,3451.2,2.3704]
[1721147809845,0.05067072,3451.4,3451.2,2.3704]
[1721147810100,0.89788126,3451.5,3451.2,2.3704]
[1721147810389,0.04584724,3451.6,3450.7,5.28225]
[1721147810390,0.05067072,3451.3,3450.7,5.28225]
[1721147810681,0.09667026,3451.2,3451.1,2.89762]
[1721147812755,0.04584724,3451.2,3451.1,6.695057]
[1721147813152,0.04584724,3451.2,3451.1,4.310757]
[1721147813362,0.04584724,3451.2,3451.1,2.89762]
[1721147813995,0.09668533,3451.2,3451.1,2.89762]
[1721147814150,0.04584724,3451.2,3451.1,2.89762]
[1721147814351,0.09668533,3451.2,3451.1,2.89762]
[1721147814551,0.04584724,3451.2,3451.1,2.89762]
[1721147814792,0.09668533,3451.2,3451.1,3.47716]
[1721147814995,0.04584724,3451.2,3451.1,3.47716]
[1721147815294,0.04584724,3451.2,3451.1,8.74648]
[1721147817796,0.04584724,3451.2,3451.1,14.6981]
[1721147818567,0.04584724,3451.2,3451.1,17.59572]
[1721147818984,0.89788126,3452.7,3452.5,2.2924]
[1721147819192,0.89788126,3452.9,3452.6,2.89636]
[1721147819564,0.89788126,3452.8,3452.6,2.89636]
[1721147819891,0.89788126,3452.9,3452.7,0.04804566]
[1721147820195,0.89788126,3452.9,3452.6,2.89636]
[1721147820863,0.89788126,3453.1,3452.8,2.8962]
[1721147821062,0.89788126,3453.0,3452.8,2.8962]
[1721147821265,0.89788126,3453.2,3453.0,2.89596]
[1721147821460,0.89788126,3453.4,3453.1,2.89594]
[1721147821905,0.89788126,3453.2,3453.1,2.89594]
[1721147822122,0.89788126,3453.3,3453.2,0.0480387]
[1721147822330,1.19801044,3453.4,3453.1,2.89594]
[1721147822331,0.89788126,3453.4,3453.1,2.89594]
[1721147822506,0.89788126,3453.5,3453.1,2.89594]
[1721147822830,0.89788126,3453.4,3453.2,0.0480387]
[1721147822982,1.19801044,3453.6,3453.3,2.89578]
[1721147822983,0.89788126,3453.5,3453.3,2.89578]
[1721147823180,0.89788126,3453.7,3453.5,2.89557]
[1721147823426,1.19801044,3453.8,3453.5,2.89557]
[1721147823427,0.89788126,3453.8,3453.5,2.89557]
[1721147823721,0.94738117,3453.7,3453.5,2.89557]
[1721147824077,0.94738117,3453.7,3452.7,2.3713]
[1721147824320,0.94738117,3453.7,3453.4,0.04803592]
[1721147824321,0.89788126,3453.7,3453.4,0.04803592]
[1721147824519,0.94738117,3453.6,3452.9,2.89609]
[1721147824830,0.94738117,3453.6,3453.1,2.89594]
[1721147825182,0.89788126,3453.9,3453.3,2.89577]
[1721147825377,0.04953184,3453.5,3453.4,3.23810679]
[1721147825616,0.89658823,3453.9,3453.5,0.04803453]
[1721147825830,0.89658823,3453.9,3453.4,2.89569]
[1721147826030,0.89658823,3453.9,3453.5,0.04803453]
[1721147826185,0.89658823,3454.0,3453.5,0.04803314]
[1721147826811,0.89658823,3454.0,3453.5,2.94364314]
[1721147826980,0.89658823,3454.0,3453.6,0.05790478]
[1721147827197,0.89658823,3454.2,3453.7,0.04803175]
[1721147827496,0.89658823,3454.2,3453.7,0.04803036]
[1721147828008,0.89583389,3454.2,3453.7,0.04803036]
[1721147828214,0.89583389,3454.3,3453.7,0.04803036]
[1721147828826,0.89583389,3454.3,3453.7,2.94347036]
[1721147829404,0.89583389,3454.3,3453.7,0.8712484]
[1721147829611,7.35,3455.1,3453.7,0.8712484]
[1721147829612,0.89583389,3454.8,3453.7,0.04803036]
[1721147829957,0.89583389,3455.1,3454.4,2.89485]
[1721147830250,1.49305648,3455.4,3454.5,2.89469]
[1721147830251,0.89583389,3455.4,3454.5,2.89469]
[1721147830417,0.89583389,3455.6,3454.5,2.89469]
[1721147830619,0.89583389,3455.6,3454.6,0.04801923]
[1721147830809,0.89583389,3455.6,3454.6,0.04801784]
[1721147831009,0.89583389,3455.7,3454.8,2.89444]
[1721147831221,8.54444518,3455.8,3455.0,2.89434]
[1721147831222,0.89583389,3455.8,3455.0,2.89434]
[1721147831416,0.89583389,3456.1,3455.1,2.89426]
[1721147831637,0.89583389,3456.2,3455.1,2.89426]
[1721147832169,1.19444518,3456.3,3455.1,2.89426]
[1721147832170,0.89583389,3456.3,3455.1,2.89426]
[1721147832340,0.89583389,3456.4,3455.3,2.3867]
[1721147832542,0.89583389,3456.5,3455.3,2.3867]
[1721147832880,0.89583389,3456.4,3455.3,2.3867]
[1721147833229,1.19444518,3456.5,3454.9,2.8944]
[1721147833230,0.89583389,3456.5,3455.1,2.89424]
[1721147833667,0.89583389,3456.4,3455.1,2.89424]
[1721147833870,0.55,3456.3,3454.9,2.89436]
[1721147834087,1.44583389,3456.4,3454.8,2.4141]
[1721147834448,1.44583389,3456.4,3454.8,5.30861]
[1721147834664,0.55,3456.4,3454.8,2.4141]
[1721147834973,1.44583389,3456.4,3454.8,5.3086]
[1721147835279,0.55,3456.4,3454.8,5.3086]
[1721147835668,0.55,3456.4,3455.1,2.89418]
[1721147836274,0.55,3456.6,3455.1,2.89418]
[1721147836783,0.55,3456.6,3455.2,2.89413]
[1721147837194,0.55,3456.6,3455.3,2.89404]
[1721147837710,0.55,3456.6,3455.1,2.89422]
[1721147837858,0.55,3456.6,3455.2,2.89418]
[1721147838219,0.55,3456.6,3455.3,2.89404]
[1721147838702,0.05046489,3456.5,3455.3,2.89404]
[1721147838908,0.55,3456.4,3455.3,2.89404]
[1721147839255,0.05046489,3456.3,3455.3,2.89404]
[1721147839497,0.55,3456.2,3455.3,2.89404]
[1721147839666,0.05046489,3456.2,3454.8,3.234428]
[1721147840003,0.55,3456.1,3454.9,0.04801506]
[1721147840300,0.55,3456.1,3455.2,2.89418]
[1721147840470,0.55,3456.1,3455.3,0.0480095]
[1721147840666,0.05047427,3456.0,3455.2,2.89418]
[1721147840888,0.55,3455.9,3455.2,2.89418]
[1721147841059,0.55,3455.9,3455.0,2.89427]
[1721147841423,0.55,3455.9,3455.1,0.04801228]
[1721147841555,0.55,3455.9,3455.1,2.94228089]
[1721147841758,0.55,3455.9,3455.1,3.76736798]
[1721147842055,0.55,3455.9,3455.2,2.89418]
[1721147842261,0.55,3455.9,3455.3,0.0480095]
[1721147842496,0.55,3455.9,3455.3,0.04800812]
[1721147843870,0.55,3455.9,3455.0,0.04800812]
[1721147844102,0.05046677,3455.8,3454.9,0.04801228]
[1721147844260,0.55,3455.7,3454.5,0.04801367]
[1721147844457,0.6007407,3455.7,3454.5,0.04801367]
[1721147844889,2.466,3455.4,3453.9,0.04801923]
[1721147845214,2.466,3455.4,3454.0,2.89513]
[1721147845379,0.55,3455.3,3454.1,2.94312618]
[1721147845561,3.60061316,3455.3,3454.2,0.04802479]
[1721147845760,3.60061316,3455.3,3453.8,5.25322]
[1721147845761,3.60061316,3455.3,3454.0,0.0480234]
[1721147845994,3.60061316,3455.3,3453.9,0.04802618]
[1721147846675,0.60061316,3455.3,3453.9,0.04802618]
[1721147846907,0.60061316,3455.3,3453.9,0.8677028]
[1721147847136,0.60061316,3455.3,3454.0,2.89511]
[1721147847314,0.60061316,3455.3,3454.1,0.04802618]
[1721147847596,0.60061316,3455.3,3454.1,0.04802479]
[1721147847799,0.60061316,3455.3,3453.9,0.81967662]
[1721147847800,0.60061316,3455.3,3454.0,0.04802479]
[1721147847981,0.60061316,3455.3,3454.0,2.94318479]
[1721147848561,0.60061316,3455.3,3454.0,0.04802479]
[1721147848757,0.60061316,3455.3,3452.8,7.37]
[1721147848758,0.60061316,3455.3,3453.9,0.04802618]
[1721147848972,0.60061316,3455.3,3452.8,7.37]
[1721147848973,4.87419,3455.2,3453.4,2.89562]
[1721147849179,0.55,3455.1,3453.4,3.423482]
[1721147849460,3.60035051,3455.1,3453.5,0.04803453]
[1721147849665,3.60035051,3455.1,3453.5,0.04803314]
[1721147849890,2.89459,3454.8,3453.5,0.04803314]
[1721147850088,3.289,3454.9,3453.2,2.89584]
[1721147850302,6.604,3455.1,3453.2,3.19022731]
[1721147850303,0.05029421,3454.7,3453.2,3.19022731]
[1721147850477,3.0,3454.7,3453.5,2.8956]
[1721147850814,0.55,3454.6,3453.6,2.49713314]
[1721147851014,0.60023603,3454.6,3453.7,0.04803175]
[1721147851300,0.60023603,3454.6,3453.8,2.89535]
[1721147851500,0.60023603,3454.6,3453.9,0.04802897]
[1721147851665,0.60023603,3454.6,3453.7,0.04802758]
[1721147852066,0.60023603,3454.6,3453.7,3.77221834]
[1721147852266,0.60023603,3454.6,3453.9,2.89526]
[1721147852500,0.55,3454.6,3454.0,0.04802758]
[1721147852805,0.55,3454.6,3454.0,0.04802618]
[1721147853946,0.89128937,3456.0,3454.0,0.04802618]
[1721147853947,7.35,3456.2,3454.5,2.89475]
[1721147854087,5.269,3456.3,3454.7,2.89455]
[1721147854289,5.269,3456.3,3454.8,0.04801645]
[1721147854527,5.269,3456.3,3454.8,0.04801506]
[1721147854873,8.323,3456.3,3454.8,0.04801506]
[1721147855181,1.98,3455.7,3454.6,0.04801506]
[1721147855386,1.98,3455.7,3454.1,0.04801784]
[1721147855709,4.98,3455.7,3454.1,0.04801784]
[1721147855913,0.55,3455.6,3454.1,0.04801784]
[1721147856085,9.4979,3455.6,3454.1,0.04801784]
[1721147856414,7.49313687,3455.6,3454.0,0.04802479]
[1721147856719,5.94794,3455.5,3454.0,0.04802479]
[1721147857016,3.55,3455.4,3454.0,0.04802479]
[1721147857374,0.55,3455.4,3454.1,2.89502]
[1721147857604,0.55,3455.5,3454.2,2.94304479]
[1721147857928,0.55,3455.5,3454.3,0.0480234]
[1721147858075,0.55,3455.5,3454.3,0.04802201]
[1721147858272,3.0,3455.6,3454.4,2.89483]
[1721147858486,3.0,3456.0,3454.5,3.23702582]
[1721147858736,3.0,3456.0,3454.6,0.04801923]
[1721147858930,0.88913687,3456.1,3454.6,0.04801784]
[1721147859086,0.88913687,3456.1,3454.7,5.24664]
[1721147859289,3.89003132,3456.2,3454.8,0.04801645]
[1721147859503,3.89003132,3456.2,3454.8,0.04801506]
[1721147859695,4.17903132,3456.1,3454.8,0.04801506]
[1721147860027,0.89003132,3455.9,3455.0,2.89429]
[1721147860323,0.89003132,3455.9,3454.7,2.465]
[1721147860324,3.0,3456.0,3455.1,0.04801228]
[1721147860483,3.0,3456.0,3454.8,0.04801089]
[1721147860684,3.89003132,3456.0,3454.8,0.04801089]
[1721147860920,0.89003132,3455.7,3454.8,0.04801089]
[1721147861135,3.289,3455.6,3454.1,0.04801506]
[1721147861295,0.89003132,3455.2,3454.1,0.04801506]
[1721147861623,1.44003132,3455.1,3454.1,0.04801506]
[1721147861786,0.55,3455.1,3454.1,0.04801506]
[1721147862523,0.89102207,3455.1,3454.1,0.04801506]
[1721147862709,0.55,3455.0,3454.1,0.04801506]
[1721147863320,0.89135842,3454.9,3454.1,0.04801506]
[1721147863625,0.55,3454.8,3454.1,0.04801506]
[1721147864323,0.89135842,3454.8,3454.1,0.04801506]
[1721147864532,1.44135842,3454.7,3454.1,0.04801506]
[1721147864742,0.55,3454.7,3454.1,0.04801506]
[1721147865095,0.55,3454.7,3454.2,2.89501]
[1721147865301,0.89135842,3454.9,3454.3,2.94288495]
[1721147865598,0.89135842,3454.9,3454.4,0.04802356]
[1721147865818,0.89135842,3454.9,3454.4,0.04802217]
[1721147866210,0.89135842,3454.9,3454.1,3.43591851]
[1721147866211,0.89135842,3454.8,3454.2,0.04802217]
[1721147866410,0.89135842,3454.8,3454.2,2.94304217]
[1721147866595,0.89135842,3454.8,3454.2,3.77335539]
[1721147866799,0.55,3454.7,3454.2,2.9414891]
[1721147866996,0.55,3454.7,3454.2,2.89502]
[1721147867427,0.55,3454.7,3454.3,2.89492]
[1721147868297,1.44135842,3454.7,3454.3,2.89492]
[1721147868797,1.44135842,3454.7,3454.0,5.36016]
[1721147868798,0.05036364,3454.6,3454.0,5.36016]
[1721147869021,0.55,3454.5,3454.1,2.89509]
[1721147869230,1.44135842,3454.5,3454.0,5.36016]
[1721147869543,0.94172206,3454.4,3454.0,2.465]
[1721147869703,0.55,3454.3,3454.0,2.465]
[1721147870095,0.05036364,3454.2,3454.0,5.36017]
[1721147870333,1.44135842,3454.3,3454.0,5.36017]
[1721147870521,0.05036364,3454.1,3454.0,5.36017]
[1721147870719,0.55,3454.3,3454.0,5.36017]
[1721147870919,0.05036364,3454.1,3454.0,5.36017]
[1721147871106,0.55,3454.3,3454.0,5.36017]
[1721147871308,0.05036364,3454.1,3454.0,5.36017]
[1721147871520,0.89135842,3454.6,3454.3,2.89491]
[1721147871840,0.89135842,3454.9,3454.5,2.89477]
[1721147872927,0.55,3454.8,3454.5,2.89477]
[1721147873644,1.44135842,3454.8,3454.5,2.89477]
[1721147874006,1.44135842,3454.8,3454.3,2.89486]
[1721147874198,0.89135842,3454.7,3454.4,2.89484]
[1721147874597,0.89135842,3454.6,3454.4,2.89484]
[1721147874842,1.44135842,3454.5,3454.1,2.89506]
[1721147875332,0.89135842,3454.3,3454.0,2.465]
[1721147875501,0.55,3454.5,3454.0,2.465]
[1721147875846,0.55,3454.5,3453.5,2.89559]
[1721147875847,1.4920805,3454.2,3453.5,5.28474]
[1721147876030,1.79049661,3454.5,3453.5,5.28474]
[1721147876031,0.89526123,3453.8,3453.5,5.28474]
[1721147876344,1.4920805,3454.1,3453.5,5.28474]
[1721147876345,0.89526123,3453.7,3453.5,5.28474]
[1721147876644,0.89526123,3453.8,3453.5,5.28474]
[1721147877137,0.89526123,3453.8,3453.6,2.89551]
[1721147877324,1.4920805,3454.1,3453.6,3.713535]
[1721147877325,0.89526123,3453.9,3453.6,3.713535]
[1721147878242,0.89526123,3454.0,3453.9,2.4004]
[1721147878418,0.89526123,3454.2,3454.0,2.89519]
[1721147878748,1.49212992,3454.5,3454.0,2.89519]
[1721147878749,0.89526123,3454.3,3454.0,2.89519]
[1721147878928,0.89526123,3454.2,3454.0,2.89519]
[1721147879248,1.19368164,3454.1,3453.9,2.4004]
[1721147879447,1.19368164,3454.1,3453.5,2.89561]
[1721147879448,1.1939253,3454.0,3453.5,2.89561]
[1721147879736,1.1939253,3454.0,3453.4,2.4558]
[1721147879737,0.89541361,3453.7,3453.4,2.4558]
[1721147879925,0.89541361,3453.6,3453.4,5.35149]
[1721147880438,0.89541361,3453.6,3453.5,2.89561]
[1721147880619,0.89541361,3453.8,3453.5,3.720336]
[1721147880814,0.89502393,3453.9,3453.6,2.89551]
[1721147881213,1.49170656,3454.2,3453.6,2.89551]
[1721147881214,0.89502393,3453.8,3453.6,2.89551]
[1721147881541,0.89502393,3453.7,3453.4,5.35144]
[1721147882117,0.89502393,3453.6,3453.4,2.4558]
[1721147882530,1.49170656,3453.9,3453.4,2.4558]
[1721147882531,2.08838917,3453.7,3453.4,5.35147]
[1721147882719,0.89502393,3453.6,3453.4,5.35147]
[1721147883050,0.89502393,3453.5,3453.4,2.4558]
[1721147883354,1.49170656,3453.6,3452.8,2.4756]
[1721147883523,0.89475355,3453.1,3452.8,2.4756]
[1721147883842,0.89475355,3453.1,3452.9,2.8961]
[1721147884241,0.05011176,3453.0,3452.9,2.8961]
[1721147884949,0.89475355,3453.2,3453.0,2.89603]
[1721147885614,0.89475355,3453.3,3453.1,2.89594]
[1721147885816,0.89475355,3453.5,3453.1,2.89594]
[1721147886124,0.89475355,3453.4,3453.0,0.5323845]
[1721147886352,0.89475355,3453.2,3452.9,2.8961]
[1721147886661,1.49125592,3453.5,3452.9,2.8961]
[1721147886662,0.89431602,3453.3,3452.9,2.8961]
[1721147886956,0.89431602,3453.2,3452.9,2.8961]
[1721147887165,0.8944163,3453.2,3452.9,2.8961]
[1721147887645,0.8944163,3453.1,3453.0,2.89603]
[1721147887849,0.8944163,3453.1,3453.0,3.722803]
[1721147888053,0.8944163,3453.3,3453.1,2.89594]
[1721147888274,0.8944163,3453.5,3453.4,2.89569]
[1721147888549,1.19255507,3453.6,3453.3,2.4547]
[1721147888762,1.19255507,3453.5,3453.3,2.4547]
[1721147889068,1.19255507,3453.4,3453.3,2.4547]
[1721147889273,1.19340537,3453.4,3453.3,2.4547]
[1721147889557,1.19340537,3453.5,3453.3,2.4547]
[1721147889780,1.19312049,3453.5,3453.3,2.4547]
[1721147890226,1.19312049,3453.4,3453.3,2.4547]
[1721147890658,1.19309803,3453.5,3453.4,2.89569]
[1721147890869,1.49140061,3453.6,3453.4,2.89569]
[1721147890870,1.19309803,3453.6,3453.4,3.720313]
[1721147891072,0.89476676,3453.5,3453.4,3.720313]
[1721147891348,0.89476676,3453.7,3453.6,2.89552]
[1721147891518,0.89476676,3453.7,3453.5,2.89561]
[1721147891519,0.89476676,3453.8,3453.7,2.89544]
[1721147891713,0.89476676,3453.9,3453.7,2.89544]
[1721147891918,1.19309803,3453.9,3453.8,2.89536]
[1721147892655,1.49140061,3454.1,3453.9,2.89527]
[1721147892656,1.19309803,3454.0,3453.9,2.89527]
[1721147892852,0.89445819,3454.0,3453.9,2.89527]
[1721147893055,1.49073281,3454.4,3454.3,5.18594]
[1721147893056,0.89445819,3454.4,3454.3,5.18594]
[1721147893223,0.89445819,3454.5,3454.4,2.89485]
[1721147893419,0.89445819,3454.7,3454.6,5.78938]
[1721147893759,0.89445819,3454.7,3454.3,5.863594]
[1721147893760,0.89445819,3454.9,3454.8,5.35852]
[1721147893967,0.89445819,3455.0,3454.9,2.89443]
[1721147894274,0.89508529,3455.0,3454.9,2.89443]
[1721147894759,0.89508529,3455.1,3455.0,2.89435]
[1721147895255,0.89472542,3455.3,3455.2,2.89418]
[1721147895454,0.89472542,3455.5,3455.3,2.8941]
[1721147895658,0.89472542,3455.6,3455.5,2.89393]
[1721147895830,2.08702593,3456.6,3455.6,2.89385]
[1721147895831,1.19309803,3455.7,3455.6,2.89385]
[1721147896160,0.89460498,3455.7,3455.6,2.89385]
[1721147896319,0.89460498,3455.8,3455.7,2.89376]
[1721147896722,1.49097272,3456.1,3455.8,2.89368]
[1721147896723,0.89460498,3455.9,3455.8,2.89368]
[1721147896927,0.89460498,3455.9,3455.7,2.89376]
[1721147897122,0.89460498,3455.8,3455.7,2.89376]
[1721147897335,0.89460498,3455.9,3455.7,2.89376]
[1721147898062,0.89460498,3455.9,3455.5,2.89393]
[1721147898259,0.89460498,3455.8,3455.5,2.89393]
[1721147898760,0.04683283,3455.7,3455.6,2.89385]
[1721147898968,1.49097272,3456.1,3455.7,2.89369]
[1721147898969,0.8942427,3455.9,3455.7,2.89369]
[1721147899371,0.894022,3456.0,3455.8,2.89368]
[1721147899555,0.894022,3456.1,3455.8,2.89368]
[1721147899866,0.894022,3456.1,3455.9,2.89354]
[1721147900068,1.19202933,3456.3,3456.0,2.89351]
[1721147900069,0.894022,3456.3,3456.0,2.89351]
[1721147900267,0.55,3456.2,3456.0,2.89351]
[1721147900474,0.55,3456.2,3456.1,2.4454]
[1721147900635,0.55,3456.3,3456.1,2.4454]
[1721147901071,1.444022,3456.3,3456.0,2.89351]
[1721147901941,1.44269564,3456.3,3456.0,2.89351]
[1721147902278,0.55,3456.3,3456.0,2.89351]
[1721147902637,1.19026085,3456.5,3456.2,2.8933]
[1721147902638,0.89269564,3456.5,3456.2,2.8933]
[1721147903292,1.19026085,3456.7,3456.2,2.8933]
[1721147903293,0.89269564,3456.6,3456.2,2.8933]
[1721147903579,0.89269564,3456.7,3455.9,0.6137735]
[1721147903777,0.89269564,3456.5,3455.9,3.5073635]
[1721147903958,0.55,3456.4,3455.9,3.5073635]
[1721147905345,0.55,3456.4,3456.0,2.8935]
[1721147905545,0.55,3456.5,3456.0,2.8935]
[1721147906365,0.55,3456.6,3456.1,2.89337]
[1721147907045,0.55,3456.6,3456.2,2.89332]
[1721147907489,3.89227829,3456.9,3456.2,2.89332]
[1721147907490,0.55,3456.8,3456.2,2.89332]
[1721147907785,0.29,3457.2,3456.6,2.89301]
[1721147907786,0.89227829,3457.2,3456.6,2.89301]
[1721147907988,4.06198268,3458.2,3456.8,2.89284]
[1721147907989,0.89227829,3457.6,3456.8,2.89284]
[1721147908158,0.89227829,3457.7,3457.1,2.89252]
[1721147908359,0.89227829,3458.1,3457.2,2.89249]
[1721147908954,0.89227829,3458.2,3457.2,5.18449]
[1721147909160,0.89227829,3458.2,3457.2,2.292]
[1721147909359,0.89227829,3458.3,3457.2,2.292]
[1721147909685,0.89227829,3458.3,3457.2,5.1845]
[1721147909880,0.89227829,3458.3,3457.4,2.89229]
[1721147910188,0.89227829,3458.4,3457.4,2.89229]
[1721147910493,0.89227829,3458.7,3457.8,2.892]
[1721147910672,0.89227829,3458.8,3457.8,2.892]
[1721147911272,3.29,3458.9,3457.6,2.8921]
[1721147911793,3.29,3458.9,3457.4,2.89231]
[1721147911794,4.18227829,3458.9,3457.4,2.89231]
[1721147911997,3.89227829,3458.8,3457.4,2.89231]
[1721147912359,3.0,3458.8,3457.5,2.89225]
[1721147912561,0.55,3458.7,3457.5,2.89225]
[1721147912788,0.55,3458.7,3457.5,3.7806762]
[1721147913208,0.55,3458.7,3457.5,0.8884262]
[1721147913360,0.55,3458.7,3457.3,2.89236]
[1721147913559,0.55,3458.7,3457.2,3.099702]
[1721147914300,0.55,3458.7,3457.2,2.292]
[1721147915999,0.55,3458.7,3457.3,2.8924]
[1721147916599,0.55,3458.7,3457.4,2.89226]
[1721147916903,0.55,3458.7,3457.5,2.89223]
[1721147918704,0.55,3458.7,3457.4,2.89234]
[1721147919219,0.55,3458.7,3457.5,2.89226]
[1721147919586,0.55,3458.7,3457.4,3.70001]
[1721147919815,0.00155307,3458.6,3457.4,3.70001]
[1721147919993,0.00155307,3458.6,3456.8,2.89279]
[1721147919994,1.98,3458.4,3456.8,2.4045]
[1721147920196,1.98,3458.4,3456.4,2.89316]
[1721147920197,0.55155307,3458.3,3456.4,2.89316]
[1721147920403,0.55155307,3458.3,3456.5,2.89309]
[1721147920404,2.464,3457.7,3456.5,2.89309]
[1721147920603,0.55155307,3457.6,3456.6,2.89293]
[1721147920812,0.55155307,3457.6,3456.7,3.182203]
[1721147921225,0.00155307,3457.6,3456.7,0.289293]
[1721147921619,0.00155307,3457.6,3456.4,2.89313]
[1721147921999,0.00155307,3457.6,3456.6,2.89299]
[1721147922200,0.00155307,3457.6,3456.3,5.4585]
[1721147922420,0.00155307,3457.6,3456.9,2.89275]
[1721147922599,0.00155307,3457.6,3457.0,5.35186]
[1721147922800,0.00155307,3457.6,3457.1,0.82447]
[1721147923018,0.00155307,3457.6,3457.2,2.89247]
[1721147923400,0.00155307,3457.6,3457.1,0.82447]
[1721147923826,0.00155307,3457.6,3457.0,2.4592]
[1721147924006,0.00155307,3457.6,3456.6,5.78594]
[1721147924210,0.00155307,3457.6,3456.4,2.2561]
[1721147924211,0.00155307,3457.6,3456.4,5.14921]
[1721147924406,0.00155307,3457.6,3456.4,2.2561]
[1721147924628,0.00155307,3457.6,3456.7,2.89291]
[1721147924927,0.00155307,3457.6,3456.8,0.289291]
[1721147925334,0.00155307,3457.6,3456.8,3.182081]
[1721147925507,0.00155307,3457.6,3457.0,2.89267]
[1721147926113,0.00155307,3457.6,3457.1,2.2546]
[1721147927347,0.00155307,3457.6,3457.3,2.89242]
[1721147927643,0.00155307,3457.6,3457.4,0.803959]
[1721147929340,0.00155307,3457.6,3457.4,3.696249]
[1721147930559,0.00155307,3457.6,3457.4,0.803959]
[1721147931323,0.00155307,3457.6,3457.2,2.8925]
[1721147931657,0.00155307,3457.6,3457.1,2.2546]